bitfinex/quotes_ETHUSD_20220308
["timestamp","ask_amount","ask_price","bid_price","bid_amount"]
[1646758014455,0.98555,2537.1,2536.7,0.468]
[1646758014656,0.98555,2537.1,2536.7,1.45361]
[1646758015259,1.28555,2537.1,2536.7,1.45361]
[1646758015562,0.98555,2537.1,2536.7,1.45361]
[1646758016405,0.98555,2537.1,2536.8,3.5]
[1646758016603,0.98555,2537.1,2536.9,2.43871]
[1646758016803,0.98555,2537.1,2536.9,3.53972593]
[1646758017004,2.2211,2537.2,2537.0,3.5]
[1646758017005,1.9711,2537.2,2537.0,3.5]
[1646758017204,2.4252,2537.6,2537.2,11.85]
[1646758017406,2.4252,2537.6,2537.1,0.8571]
[1646758017407,2.4252,2537.6,2537.3,12.318]
[1646758017605,0.25,2537.7,2537.5,11.85]
[1646758017804,0.25,2537.7,2537.6,12.318]
[1646758018207,0.25,2537.7,2537.6,13.318]
[1646758018405,0.25,2537.7,2537.6,1.468]
[1646758018605,0.25,2537.7,2537.6,0.468]
[1646758019405,0.15,2537.7,2537.6,0.468]
[1646758019607,0.15,2537.7,2537.6,0.58427624]
[1646758021457,0.15,2537.7,2537.6,12.43427624]
[1646758021658,0.15,2537.7,2537.6,0.58427624]
[1646758022660,0.25,2538.0,2537.6,12.73427624]
[1646758022860,0.25,2538.0,2537.8,11.96627624]
[1646758023059,2.4422,2538.4,2538.0,11.96627624]
[1646758023261,2.6922,2538.4,2538.3,0.11627624]
[1646758023906,0.25,2538.4,2538.3,0.11627624]
[1646758024512,2.99570806,2538.5,2538.3,14.40384624]
[1646758024707,2.99570806,2538.5,2538.3,16.53924624]
[1646758024708,0.04035806,2538.5,2538.3,16.53924624]
[1646758025311,0.04035806,2538.5,2538.3,4.68924624]
[1646758025513,0.04035806,2538.5,2538.3,3.68924624]
[1646758026119,2.01005806,2538.5,2538.4,0.11627624]
[1646758026317,0.04035806,2538.5,2538.4,12.43427624]
[1646758026715,0.04035806,2538.5,2538.4,13.82337624]
[1646758027118,0.04035806,2538.5,2538.4,14.55173728]
[1646758027318,0.04035806,2538.5,2538.4,15.53646728]
[1646758027556,0.04035806,2538.5,2538.4,3.68646728]
[1646758027757,0.0245543,2538.5,2538.4,3.68646728]
[1646758027958,0.0245543,2538.5,2538.4,1.56900624]
[1646758028864,0.0245543,2538.5,2538.4,1.10100624]
[1646758029061,0.0245543,2538.5,2538.0,3.43808]
[1646758029262,0.2745543,2538.5,2538.1,0.3891]
[1646758029463,0.01049716,2538.6,2538.3,0.3891]
[1646758029761,0.01049716,2538.6,2538.5,11.85]
[1646758029964,0.01049716,2538.6,2538.5,0.468]
[1646758030161,0.01049716,2538.6,2538.5,0.768]
[1646758030362,0.99523716,2538.6,2538.5,0.468]
[1646758030661,0.99523716,2538.6,2538.5,1.45268]
[1646758031066,0.02099432,2538.6,2538.5,2.63978]
[1646758031322,3.385617,2539.6,2538.7,5.0]
[1646758031516,0.98451,2539.0,2538.8,5.468]
[1646758031713,0.011317,2539.6,2539.2,5.0]
[1646758031911,0.01082148,2540.3,2539.6,11.85]
[1646758031912,0.03,2540.2,2539.6,11.85]
[1646758032210,0.03,2540.2,2540.0,11.85]
[1646758032211,0.00512072,2540.1,2540.0,11.85]
[1646758032412,0.00512072,2540.1,2539.9,0.468]
[1646758032611,0.00512072,2540.1,2539.6,2.96834]
[1646758032816,0.00512072,2540.1,2539.7,0.98417]
[1646758032817,0.9842,2539.9,2539.7,0.98417]
[1646758033416,0.9842,2539.9,2539.6,1.96834]
[1646758033614,0.9842,2539.9,2539.3,0.468]
[1646758034015,0.9842,2539.9,2539.6,1.96834]
[1646758034315,0.9842,2539.9,2539.6,14.11834]
[1646758034517,0.9842,2539.9,2539.7,0.468]
[1646758034714,0.9842,2539.9,2539.7,12.318]
[1646758034981,0.9842,2539.9,2539.7,0.468]
[1646758035184,0.9842,2539.9,2539.7,1.468]
[1646758035381,0.9842,2539.9,2539.7,0.468]
[1646758035782,0.9342,2539.9,2539.7,0.468]
[1646758036489,1.2342,2539.9,2539.6,1.96834]
[1646758036783,1.2342,2539.9,2539.6,2.43634]
[1646758036985,1.2342,2539.9,2539.6,14.28634]
[1646758036986,0.9342,2539.9,2539.6,14.28634]
[1646758037184,0.9342,2539.9,2539.6,14.58634]
[1646758037385,0.9342,2539.9,2539.8,11.85]
[1646758037583,0.9342,2539.9,2539.8,0.468]
[1646758038184,0.9342,2539.9,2539.8,0.368]
[1646758038587,1.2342,2539.9,2539.8,0.368]
[1646758039210,1.2342,2539.9,2539.0,2.0]
[1646758039409,1.2342,2539.9,2539.2,0.468]
[1646758039610,1.2342,2539.9,2539.0,1.0]
[1646758039611,0.98465,2539.7,2539.0,1.0]
[1646758039812,1.28465,2539.7,2538.8,0.468]
[1646758040008,1.28465,2539.7,2539.2,1.9692]
[1646758040009,12.33485,2539.7,2539.2,1.9692]
[1646758040210,12.33485,2539.7,2539.3,0.468]
[1646758040412,2.50665,2539.7,2539.3,0.468]
[1646758040609,1.28465,2539.7,2539.2,1.9692]
[1646758040809,1.28465,2539.7,2539.3,12.318]
[1646758041209,1.28465,2539.7,2539.3,1.468]
[1646758041410,1.28465,2539.7,2539.3,0.468]
[1646758041909,1.28465,2539.7,2539.4,0.98436]
[1646758042111,1.28465,2539.7,2539.4,1.45236]
[1646758043362,0.98465,2539.7,2539.5,1.96874]
[1646758043561,0.98465,2539.7,2539.6,0.468]
[1646758043760,0.98465,2539.7,2539.6,0.768]
[1646758046228,0.98465,2539.7,2539.6,12.618]
[1646758046615,0.98465,2539.7,2539.6,1.468]
[1646758046825,0.98465,2539.7,2539.6,0.468]
[1646758047019,1.28465,2539.7,2539.6,0.468]
[1646758047920,1.28465,2539.7,2539.5,0.7220417]
[1646758048520,1.28465,2539.7,2539.5,1.1900417]
[1646758048719,0.98465,2539.7,2539.5,1.4900417]
[1646758048923,0.98465,2539.7,2539.5,1.1900417]
[1646758049964,0.98465,2539.7,2539.1,1.0]
[1646758049965,0.68465,2539.7,2539.1,1.0]
[1646758050167,0.38465,2539.7,2539.1,1.0]
[1646758050366,0.38465,2539.7,2538.8,0.468]
[1646758050566,1.60545,2539.7,2539.2,0.98467]
[1646758050965,0.38465,2539.7,2539.2,0.98467]
[1646758051170,1.28433,2539.9,2539.3,11.85]
[1646758051365,1.28433,2539.9,2539.3,14.3022807]
[1646758051567,1.28433,2539.9,2539.3,2.4522807]
[1646758051872,1.28433,2539.9,2539.4,0.98432]
[1646758052066,1.28433,2539.9,2539.5,1.23345281]
[1646758052266,1.28433,2539.9,2539.4,1.45232]
[1646758054107,1.28433,2539.9,2539.3,1.96864]
[1646758056111,0.98433,2539.9,2539.3,1.96864]
[1646758056309,1.20450157,2539.8,2539.3,1.96864]
[1646758056910,0.98433,2539.9,2539.3,1.96864]
[1646758057216,6.9561,2540.0,2539.4,0.468]
[1646758057656,1.22592072,2540.1,2539.4,0.468]
[1646758057857,1.22592072,2540.1,2539.4,16.118]
[1646758058057,1.22592072,2540.1,2539.8,1.1613615]
[1646758058259,1.22592072,2540.1,2539.8,3.5978515]
[1646758058459,1.22592072,2540.1,2539.8,15.4478515]
[1646758058660,0.03,2540.2,2540.1,11.85]
[1646758058860,0.05048288,2540.2,2540.1,16.818]
[1646758059058,0.01082148,2540.3,2540.1,16.818]
[1646758059059,0.01082148,2540.3,2540.2,15.85]
[1646758059259,10.1659,2540.6,2540.3,14.35]
[1646758059460,10.1659,2540.6,2540.4,1.67030642]
[1646758059661,0.3939,2540.8,2540.4,13.52030642]
[1646758059865,0.3939,2540.8,2540.5,0.98393]
[1646758060067,0.00945316,2541.2,2540.8,11.85]
[1646758060266,0.00945316,2541.2,2540.9,17.31706]
[1646758060465,0.00945316,2541.2,2540.9,14.28506]
[1646758060668,0.00945316,2541.2,2541.0,14.85]
[1646758060669,0.01890632,2541.2,2541.0,14.85]
[1646758060972,0.00200995,2541.8,2541.4,1.9667535]
[1646758061224,0.72208493,2542.4,2541.4,1.9667535]
[1646758061225,0.74163273,2542.6,2541.6,3.93256]
[1646758061408,1.18566642,2542.4,2541.7,13.318]
[1646758061606,1.18566642,2542.4,2541.9,11.85]
[1646758061809,1.18566642,2542.4,2542.2,1.04479123]
[1646758062006,1.18566642,2542.4,2542.2,0.468]
[1646758062210,0.0195478,2542.6,2542.2,0.468]
[1646758063210,0.0195478,2542.6,2541.7,1.96721]
[1646758063407,0.0195478,2542.6,2541.7,13.81721]
[1646758063608,0.0195478,2542.6,2541.7,1.96721]
[1646758063809,0.0195478,2542.6,2541.8,3.5]
[1646758064010,0.0195478,2542.6,2541.9,5.39022039]
[1646758064212,0.0161926,2542.8,2542.5,12.2391]
[1646758064411,0.0161926,2542.8,2542.7,13.18697337]
[1646758064811,9.26e-05,2542.8,2542.7,0.468]
[1646758065465,0.04713796,2543.0,2542.7,1.45101]
[1646758065869,0.04713796,2543.0,2542.7,1.84011]
[1646758066066,0.04713796,2543.0,2542.7,2.14011]
[1646758066267,0.04713796,2543.0,2542.7,1.75101]
[1646758066666,0.04713796,2543.0,2542.7,1.45101]
[1646758067569,0.04713796,2543.0,2542.7,13.99011]
[1646758067767,0.04713796,2543.0,2542.7,14.99011]
[1646758068072,0.23428894,2544.0,2543.1,16.85]
[1646758068265,0.23428894,2544.0,2543.6,0.01285038]
[1646758068266,0.00199424,2543.9,2543.6,0.01285038]
[1646758068469,0.01334752,2544.3,2544.1,11.85]
[1646758068723,4.752e-05,2544.3,2544.2,12.618]
[1646758069108,0.00764716,2544.5,2544.2,13.318]
[1646758069308,0.00764716,2544.5,2544.2,2.45044]
[1646758069507,0.00764716,2544.5,2544.2,1.45044]
[1646758070119,0.00764716,2544.5,2544.0,1.0]
[1646758071013,0.99025716,2544.5,2544.0,1.0]
[1646758071213,0.99025716,2544.5,2544.2,11.85]
[1646758071214,0.00764716,2544.5,2544.2,11.85]
[1646758071415,0.08612764,2544.7,2544.5,11.85]
[1646758071714,0.10142196,2544.7,2544.6,0.468]
[1646758071914,0.10142196,2544.7,2544.5,0.468]
[1646758072556,0.10142196,2544.7,2544.6,0.98223]
[1646758072959,1.08394196,2544.7,2544.6,0.98223]
[1646758073156,1.08394196,2544.7,2543.8,1.0]
[1646758073357,3.5,2544.6,2543.7,0.468]
[1646758073557,0.00198592,2544.6,2544.5,0.0012]
[1646758073756,0.01529432,2544.6,2544.5,0.0012]
[1646758074657,1.98080432,2544.6,2544.5,0.0012]
[1646758074857,0.01529432,2544.6,2544.5,0.0012]
[1646758075661,0.01529432,2544.6,2544.5,1.19793787]
[1646758076066,0.01529432,2544.6,2544.5,1.66593787]
[1646758076312,0.13496056,2544.8,2544.6,5.0]
[1646758076509,0.13496056,2544.8,2544.7,12.318]
[1646758076711,1.0,2545.0,2544.7,12.318]
[1646758077307,1.0,2545.0,2544.9,1.05273702]
[1646758077507,1.0,2545.0,2544.9,0.468]
[1646758077707,1.0,2545.0,2544.9,1.45031]
[1646758078311,1.0,2545.0,2544.9,0.468]
[1646758078710,1.0,2545.0,2544.8,0.98247]
[1646758078913,1.0,2545.0,2544.8,13.30047]
[1646758079315,1.0,2545.0,2544.8,1.45047]
[1646758080067,1.0,2545.0,2544.8,0.98247]
[1646758080266,1.0,2545.0,2544.5,0.0012]
[1646758081766,2.94821,2544.9,2544.5,0.0012]
[1646758083471,3.0,2544.8,2544.5,0.0012]
[1646758083719,0.98284,2544.8,2544.7,0.0012]
[1646758083911,0.00032833,2544.6,2544.0,0.98276]
[1646758084112,1.96572833,2544.6,2544.0,0.98276]
[1646758084512,1.96572833,2544.6,2543.4,0.468]
[1646758084717,3.0,2544.2,2543.0,1.768]
[1646758085015,3.86715744,2544.2,2543.0,1.98312]
[1646758085214,0.86715744,2544.2,2543.0,1.98312]
[1646758085418,1.81898592,2544.3,2543.0,1.98312]
[1646758085620,1.81898592,2544.3,2543.0,0.98312]
[1646758085817,0.98315,2543.9,2542.8,0.01337159]
[1646758086017,3.0,2543.7,2542.8,1.96622]
[1646758086217,2.41105,2543.9,2542.8,1.96622]
[1646758087017,3.3942809,2543.9,2542.8,1.96622]
[1646758087221,0.9833,2543.6,2542.6,1.96636]
[1646758087658,1.2833,2543.6,2542.5,0.19219631]
[1646758088263,1.2833,2543.6,2542.6,13.29934412]
[1646758088459,1.2833,2543.6,2542.6,1.06024412]
[1646758088860,0.9833,2543.6,2542.6,4.86024412]
[1646758089160,0.9833,2543.6,2542.6,1.06024412]
[1646758089362,0.9833,2543.6,2542.8,1.96621]
[1646758090574,0.9833,2543.6,2542.6,1.36024412]
[1646758090868,0.9833,2543.6,2542.6,2.34352412]
[1646758091906,0.9833,2543.6,2542.6,1.36024412]
[1646758092106,0.9833,2543.6,2542.8,0.9832]
[1646758092705,0.9833,2543.6,2542.6,1.36024412]
[1646758092906,1.2833,2543.6,2542.5,0.38776382]
[1646758093107,1.2833,2543.6,2542.5,0.19219631]
[1646758093108,0.9833,2543.6,2542.5,0.19219631]
[1646758093308,3.0,2543.4,2542.5,0.19219631]
[1646758093510,0.98343,2543.3,2542.5,0.19219631]
[1646758093707,1.28343,2543.3,2542.5,0.19219631]
[1646758094108,3.98343,2543.3,2542.7,1.173]
[1646758094309,3.93314,2543.8,2541.9,1.0]
[1646758094310,1.7122652,2542.6,2541.9,1.0]
[1646758094607,1.7122652,2542.6,2541.9,0.58070605]
[1646758094608,4.48361,2542.5,2541.9,0.58070605]
[1646758094806,4.48361,2542.5,2542.0,11.85]
[1646758094807,0.98361,2542.5,2542.0,11.85]
[1646758095071,1.7122652,2542.6,2542.4,1.1888513]
[1646758095271,1.7122652,2542.6,2542.5,0.98329]
[1646758095272,0.33876758,2542.6,2542.5,0.98329]
[1646758095468,0.00198592,2543.4,2542.6,3.5]
[1646758095669,2.22836,2543.5,2542.5,1.0]
[1646758095867,2.22836,2543.5,2542.6,0.768]
[1646758096071,2.22836,2543.5,2543.1,1.2141639]
[1646758096267,2.22836,2543.5,2543.1,2.1972839]
[1646758096467,2.22836,2543.5,2543.1,0.98312]
[1646758097269,2.22836,2543.5,2543.2,0.468]
[1646758097467,0.98297,2543.7,2543.2,12.318]
[1646758097668,1.24578592,2543.9,2543.4,0.98288]
[1646758097669,1.2438,2543.9,2543.4,0.98288]
[1646758097869,1.2438,2543.9,2543.5,0.468]
[1646758098268,1.2438,2543.9,2543.3,1.96576]
[1646758098724,3.20977,2543.9,2543.3,1.96576]
[1646758099318,1.2438,2543.9,2543.3,1.96576]
[1646758099516,1.2438,2543.9,2543.3,3.09582529]
[1646758099715,2.22678,2543.9,2543.3,1.96576]
[1646758099917,6.11588,2543.9,2542.4,1.0]
[1646758100118,0.00198592,2543.8,2542.5,1.0]
[1646758100320,1.96626,2543.7,2542.3,0.66356751]
[1646758100517,3.50198592,2543.6,2542.6,1.96636]
[1646758100718,3.5,2543.6,2542.6,3.1037987]
[1646758101322,0.98313,2543.5,2542.6,3.1037987]
[1646758101521,0.98313,2543.5,2542.6,1.96636]
[1646758102322,3.5,2543.4,2542.1,3.93194]
[1646758102575,0.98342,2543.2,2542.1,4.82840982]
[1646758102774,4.48540592,2543.2,2542.1,0.89646982]
[1646758103376,1.07374509,2543.1,2542.1,0.89646982]
[1646758103578,0.98336,2542.9,2542.1,0.89646982]
[1646758104377,0.98336,2542.9,2542.2,0.98344]
[1646758104577,0.98336,2542.9,2542.1,0.89646982]
[1646758105277,0.98336,2542.9,2542.0,1.96678]
[1646758105477,0.98336,2542.9,2542.1,0.51026601]
[1646758105677,4.48336,2542.9,2542.1,0.51026601]
[1646758105879,0.98336,2542.9,2542.3,0.98338]
[1646758106321,0.98336,2542.9,2542.5,1.12918832]
[1646758106522,0.98336,2542.9,2542.0,2.26678]
[1646758106820,0.98336,2542.9,2542.1,0.51061726]
[1646758107423,0.98336,2542.9,2542.2,0.98339]
[1646758107625,0.98336,2542.9,2542.3,0.51061726]
[1646758107823,0.98336,2542.9,2542.4,0.86892319]
[1646758108023,0.98336,2542.9,2542.2,0.98339]
[1646758108224,0.98336,2542.9,2542.3,0.51090327]
[1646758109425,1.07931581,2542.8,2542.3,0.51090327]
[1646758109626,0.98336,2542.9,2542.3,0.51090327]
[1646758109825,1.07935986,2542.8,2542.3,0.51090327]
[1646758110064,1.07935986,2542.8,2542.0,1.96678]
[1646758110265,0.98336,2542.9,2542.1,0.97918059]
[1646758110465,0.98336,2542.9,2542.2,0.51118059]
[1646758110665,0.98336,2542.9,2542.3,0.468]
[1646758110866,0.98336,2542.9,2542.4,0.51118059]
[1646758111268,0.98336,2542.9,2542.3,1.15129255]
[1646758111467,0.98336,2542.9,2542.4,0.51107516]
[1646758112567,0.98336,2542.9,2542.0,2.26678]
[1646758112767,1.07915238,2542.8,2542.1,0.5111461]
[1646758113369,1.07915238,2542.8,2542.3,0.97548035]
[1646758113577,0.98336,2542.9,2542.3,0.97548035]
[1646758113820,0.98336,2542.9,2542.4,0.51099356]
[1646758114237,3.0,2542.6,2541.7,0.468]
[1646758114425,3.0,2542.6,2541.2,0.97275672]
[1646758114426,0.98374,2542.1,2541.2,1.0]
[1646758114623,0.69961342,2542.3,2541.4,0.71376806]
[1646758114821,0.70159934,2542.3,2541.4,1.69749806]
[1646758115026,0.70159934,2542.3,2541.5,0.71376806]
[1646758115027,0.69961342,2542.3,2541.5,0.71376806]
[1646758115226,0.69961342,2542.3,2541.6,1.10286806]
[1646758115425,0.69961342,2542.3,2541.5,0.90933557]
[1646758115624,0.69961342,2542.3,2541.6,0.468]
[1646758115825,0.69961342,2542.3,2541.6,1.37733557]
[1646758116226,1.13618592,2542.6,2541.9,12.2391]
[1646758116427,1.1333,2542.7,2542.1,12.2391]
[1646758116625,1.1333,2542.7,2542.2,16.2071]
[1646758116827,1.1333,2542.7,2542.2,12.7071]
[1646758117026,1.1333,2542.7,2542.2,14.0071]
[1646758117463,1.1333,2542.7,2542.3,0.99816475]
[1646758117663,1.1333,2542.7,2542.4,0.468]
[1646758117863,1.1333,2542.7,2542.5,0.98319]
[1646758118165,1.1333,2542.7,2542.6,0.468]
[1646758118362,0.0197862,2543.1,2543.0,0.87061092]
[1646758118565,0.0197862,2543.1,2542.6,0.468]
[1646758118966,0.0197862,2543.1,2542.7,1.96625]
[1646758119169,0.0197862,2543.1,2542.8,0.468]
[1646758119769,0.0197862,2543.1,2542.9,0.9036745]
[1646758119969,0.0197862,2543.1,2543.0,0.468]
[1646758120669,0.0197862,2543.1,2543.0,0.768]
[1646758121334,0.0197862,2543.1,2543.0,1.75112]
[1646758122526,0.0197862,2543.1,2543.0,0.468]
[1646758122928,0.00198592,2543.7,2543.0,4.00767115]
[1646758123126,0.00198592,2543.8,2543.1,0.3891]
[1646758123326,0.00198592,2544.2,2543.3,12.2391]
[1646758123526,0.00198592,2544.3,2543.4,14.28359]
[1646758123727,0.98286,2544.3,2543.4,14.28359]
[1646758123927,0.98286,2544.3,2543.4,2.43359]
[1646758124131,0.98286,2544.3,2543.5,0.9828]
[1646758124434,0.72208493,2544.0,2543.1,0.468]
[1646758124827,2.68815493,2544.0,2543.1,0.468]
[1646758125074,1.96607,2544.0,2543.1,2.41982346]
[1646758125674,1.96607,2544.0,2543.1,0.468]
[1646758125875,1.96607,2544.0,2542.7,0.468]
[1646758125876,11.85,2543.9,2542.7,0.468]
[1646758126077,1.11118493,2543.5,2542.2,0.71376806]
[1646758126274,1.11118493,2543.5,2542.1,0.71376806]
[1646758126275,1.28343,2543.3,2542.1,0.71376806]
[1646758126475,1.28343,2543.3,2542.0,0.71376806]
[1646758126476,0.09735766,2543.2,2542.0,0.71376806]
[1646758126675,0.09934358,2543.2,2542.4,1.17562596]
[1646758126880,0.09735766,2543.2,2542.4,1.17562596]
[1646758127274,0.09735766,2543.2,2542.5,0.98332]
[1646758127476,0.09735766,2543.2,2542.5,13.30132]
[1646758127679,0.00198592,2543.7,2542.7,12.2391]
[1646758127876,6.15048592,2543.8,2543.5,0.87298221]
[1646758128077,2.68835493,2543.9,2542.9,5.85519]
[1646758128078,1.96627,2543.9,2542.9,5.85519]
[1646758128277,1.96627,2543.9,2542.9,3.12319]
[1646758128475,1.96627,2543.9,2543.0,1.37215]
[1646758128721,0.00198592,2544.0,2543.2,12.2391]
[1646758128922,1.86918493,2544.3,2543.4,12.2391]
[1646758128923,0.00198592,2544.1,2543.4,12.2391]
[1646758129119,0.00198592,2544.1,2543.3,5.93367]
[1646758129120,1.14908592,2544.3,2543.6,12.2391]
[1646758129325,0.00198592,2544.5,2543.8,12.2391]
[1646758129528,0.00032833,2544.6,2544.5,1.09172783]
[1646758130125,0.00032833,2544.6,2544.4,1.96498]
[1646758130327,0.00032833,2544.6,2544.5,0.468]
[1646758130926,0.00032833,2544.6,2544.5,1.45049]
[1646758132470,0.00032833,2544.6,2544.5,0.468]
[1646758133675,0.00032833,2544.6,2544.5,1.45047]
[1646758136074,0.00032833,2544.6,2544.1,2.43322]
[1646758136320,0.00032833,2544.6,2544.1,1.96522]
[1646758137522,0.00032833,2544.6,2543.3,3.93019]
[1646758137723,0.00032833,2544.6,2543.5,0.98296]
[1646758137925,1.01926129,2544.6,2543.5,0.98296]
[1646758138322,2.13044622,2544.6,2543.2,0.2594]
[1646758138527,3.0,2544.3,2543.2,0.2594]
[1646758138724,2.98523296,2544.2,2543.2,0.2594]
[1646758138924,1.01893296,2544.1,2543.2,0.2594]
[1646758139625,0.98315,2544.0,2543.2,0.2594]
[1646758139829,1.01893296,2543.9,2543.2,0.2594]
[1646758140070,2.98545296,2543.9,2543.2,0.2594]
[1646758140271,1.01893296,2543.8,2543.2,0.2594]
[1646758140470,12.86893296,2543.8,2543.2,0.2594]
[1646758140670,1.01893296,2543.7,2543.2,0.2594]
[1646758140871,1.1715,2544.1,2543.2,1.14763969]
[1646758141075,0.00198592,2544.0,2543.3,0.54221811]
[1646758141272,1.1715,2544.1,2543.4,0.468]
[1646758141471,1.1715,2544.1,2543.5,15.89221811]
[1646758141670,7.5952,2544.4,2543.6,1.01021811]
[1646758141872,7.5952,2544.4,2544.1,1.13946413]
[1646758142071,0.00231425,2544.6,2544.1,1.13946413]
[1646758142072,0.00032833,2544.6,2544.1,1.13946413]
[1646758142271,1.04528306,2544.6,2544.1,0.3]
[1646758142672,1.04528306,2544.6,2544.0,1.28274]
[1646758143271,1.04528306,2544.6,2544.0,1.75074]
[1646758143470,1.04528306,2544.6,2544.1,0.98257]
[1646758143471,0.00032833,2544.6,2544.1,0.98257]
[1646758143711,0.00032833,2544.6,2544.2,0.468]
[1646758144112,0.00032833,2544.6,2544.2,0.768]
[1646758144514,0.00032833,2544.6,2544.3,0.98258]
[1646758144914,0.00032833,2544.6,2544.4,3.5]
[1646758145121,0.00032833,2544.6,2544.5,0.468]
[1646758146320,0.00032833,2544.6,2544.5,0.3]
[1646758146721,0.00032833,2544.6,2544.3,1.28258]
[1646758147562,0.00032833,2544.6,2544.3,0.98258]
[1646758148765,0.00032833,2544.6,2544.2,1.96517]
[1646758148965,0.00032833,2544.6,2544.2,2.26517]
[1646758149569,0.00032833,2544.6,2543.5,1.0]
[1646758149767,0.00032833,2544.6,2543.6,1.01859968]
[1646758149965,1.96569,2544.5,2543.6,0.468]
[1646758150371,1.03486375,2544.4,2543.3,2.9478424]
[1646758150571,0.98294,2544.2,2543.4,0.55074746]
[1646758150871,7.59746375,2544.4,2543.1,0.2487]
[1646758150872,0.3,2544.3,2543.1,0.2487]
[1646758151068,1.03494841,2544.2,2543.2,0.55081301]
[1646758151314,1.03494841,2544.2,2543.2,2.51674301]
[1646758151516,1.03710017,2544.2,2543.3,0.55081301]
[1646758152117,0.00215176,2544.2,2543.5,0.98294]
[1646758152319,0.00215176,2544.2,2543.6,0.55081301]
[1646758152517,0.00215176,2544.2,2543.7,1.96552]
[1646758152718,0.00215176,2544.2,2543.7,2.26552]
[1646758153322,0.00215176,2544.2,2543.7,0.3]
[1646758153520,0.00215176,2544.2,2543.3,1.9656377]
[1646758153521,0.00215176,2544.2,2543.3,2.4336377]
[1646758153719,0.98511176,2544.2,2543.4,0.55093049]
[1646758153921,0.00215176,2544.2,2543.4,0.55093049]
[1646758154123,0.00215176,2544.2,2543.6,2.948355]
[1646758154322,0.00215176,2544.2,2543.6,3.248355]
[1646758154521,0.00215176,2544.2,2543.6,15.098355]
[1646758154821,0.00215176,2544.2,2543.7,1.53373532]
[1646758155073,0.00215176,2544.2,2543.8,1.00903189]
[1646758155271,0.00215176,2544.2,2543.8,0.468]
[1646758155474,0.00215176,2544.2,2544.0,1.01468324]
[1646758155673,0.00215176,2544.2,2544.0,1.31468324]
[1646758156272,0.00066476,2544.2,2544.1,0.468]
[1646758156471,0.00066476,2544.2,2544.1,1.45068]
[1646758157574,0.00066476,2544.2,2544.1,15.45045065]
[1646758157777,0.00032833,2544.6,2544.2,16.85]
[1646758157977,0.00463185,2544.6,2544.5,0.98243]
[1646758158175,0.00463185,2544.6,2544.5,1.45043]
[1646758158376,0.00463185,2544.6,2544.5,1.75043]
[1646758158731,0.00463185,2544.6,2544.5,3.50504109]
[1646758159320,0.00463185,2544.6,2544.5,2.31561208]
[1646758159519,0.00463185,2544.6,2544.5,0.768]
[1646758159725,0.00463185,2544.6,2544.4,2.26485]
[1646758160023,0.00463185,2544.6,2544.4,0.3]
[1646758160225,0.00463185,2544.6,2544.4,0.98262]
[1646758160425,0.00463185,2544.6,2544.5,4.53341242]
[1646758160629,0.00463185,2544.6,2544.5,16.38341242]
[1646758160925,0.00463185,2544.6,2544.5,2.03341242]
[1646758161327,0.00463185,2544.6,2544.5,2.24457523]
[1646758161725,0.00463185,2544.6,2544.5,14.09457523]
[1646758162225,0.05878534,2545.1,2545.0,17.2391]
[1646758162466,0.03937646,2545.2,2545.1,15.35]
[1646758162666,0.0375413,2545.5,2545.3,12.2391]
[1646758162866,0.0375413,2545.5,2545.4,12.80429632]
[1646758163066,0.0375413,2545.5,2545.4,13.66139632]
[1646758163269,0.42756976,2545.8,2545.5,0.0197587]
[1646758163470,0.42756976,2545.8,2545.7,12.2391]
[1646758163665,0.00804026,2546.1,2546.0,11.85]
[1646758163872,0.00804026,2546.1,2546.0,12.7071]
[1646758164069,0.00804026,2546.1,2546.0,13.0071]
[1646758164269,0.00804026,2546.1,2546.0,14.17024756]
[1646758164671,0.02178554,2546.5,2546.2,16.85]
[1646758164672,0.01608052,2546.4,2546.2,16.85]
[1646758164871,0.01608052,2546.4,2546.3,12.7071]
[1646758165074,0.0572629,2546.6,2546.4,5.3891]
[1646758165274,0.0572629,2546.6,2546.5,12.318]
[1646758165275,0.06082838,2546.6,2546.5,12.318]
[1646758165673,0.00713096,2546.6,2546.5,0.768]
[1646758166074,0.00713096,2546.6,2546.5,3.71243]
[1646758166324,0.00713096,2546.6,2546.0,4.24513]
[1646758166526,0.00713096,2546.6,2546.0,0.3]
[1646758166527,1.02897584,2546.5,2546.0,0.3]
[1646758166724,1.07444972,2546.5,2545.8,1.8511379]
[1646758166926,1.07444972,2546.5,2546.1,0.98194]
[1646758166927,1.02897584,2546.4,2546.1,0.98194]
[1646758167323,0.04433703,2546.3,2546.1,1.28194]
[1646758167524,0.04433703,2546.3,2546.1,0.98194]
[1646758167724,6.15313096,2546.6,2545.5,0.468]
[1646758167725,1.0724764,2546.2,2545.5,0.468]
[1646758167924,1.02875285,2546.1,2545.3,0.98219]
[1646758168125,1.07195304,2546.1,2545.1,0.468]
[1646758168327,1.07337053,2546.0,2545.2,1.09997978]
[1646758168527,0.04263176,2546.0,2545.1,0.468]
[1646758168824,1.07057764,2545.9,2545.2,1.9641788]
[1646758169024,0.04206334,2545.9,2545.2,1.9641788]
[1646758169224,0.04149492,2545.8,2545.2,1.9641788]
[1646758169424,0.04149492,2545.8,2545.3,1.96428]
[1646758169623,0.04092649,2545.7,2545.3,1.96428]
[1646758170067,0.04035807,2545.6,2545.3,2.26428]
[1646758170267,0.04035807,2545.6,2545.3,1.96428]
[1646758170469,1.96471,2545.6,2544.7,0.18109504]
[1646758170669,1.02846514,2545.5,2544.7,0.18109504]
[1646758170867,6.91156514,2545.5,2544.7,0.18109504]
[1646758171072,5.8831,2545.5,2544.7,0.18109504]
[1646758171267,5.8831,2545.5,2544.8,0.98071353]
[1646758171668,5.8831,2545.5,2544.8,1.28071353]
[1646758171868,5.8831,2545.5,2544.9,0.55613067]
[1646758172068,5.8831,2545.5,2544.9,0.98241]